Cogmind - Beta 9.1 @@@ ROGUE MODE // 2019.10.26 @ 13:19:30 Player: ArElGee Result: Destroyed by P-80 Master with Gamma Rifle Performance ------------- Evolutions (9) 4500 Regions Visited (32) 6400 Robots Destroyed (264) 1320 Value Destroyed (10629) 10629 Prototype IDs (64) 1280 Alien Tech Used (1) 200 Bonus (7938) 7938 TOTAL SCORE: 32267 Bonus ------- Triggered High Security 500 High Alert Combat Kills 1929 Follower Combat Kills 2653 Network Hubs Disabled 200 Aligned with FarCom 300 Met Imprinter 300 Was Imprinted 300 Met Zhirov 300 Met Warlord at Base 500 MAIN.C Attacked Warlord 500 Built Enhanced Grunts 300 Met R17 at Cetus 500 Friendly Fire -344 Cogmind --------- Core Integrity 0/1600 Matter 251/300 Energy 99/100 System Corruption 15% Temperature Cool (0) Location -1/Access Parts ------- Power (2) Propulsion (7) Utility (13) Advanced Visual Processing Unit Enhanced Optical Array Advanced Signal Interpreter Advanced Signal Interpreter Improved Target Analyzer Weapon (3) Force Lance Inventory (4) Quantum Reactor Peak State ------------ Power Fusion Reactor Propulsion Cooled Antigrav System Cooled Impulse Thruster Cooled Impulse Thruster Impulse Thruster Array Impulse Thruster Array Utility Advanced Power Amplifier Advanced Heat Sink Experimental Cooling System Medium Storage Unit Advanced Signal Interpreter Improved Target Analyzer Advanced Target Analyzer Improved Armor Integrity Analyzer Improved Stasis Canceller Experimental Core Shielding Improved System Shield Weapon Chainsword Chainsword Force Lance Inventory Vortex Chain Reactor Impulse Thruster Array Experimental Matter Compressor System Restoration Module Improved System Restoration Module Fusion Bomb Launcher [Rating: 152] Favorites ----------- Power Micro Fission Core Engine Improved Deuterium Engine Power Core Micro Fission Core Reactor Quantum Reactor Propulsion Armored Huge Wheel Treads Light Treads Leg Improved Carbon-fiber Leg Wheel Armored Huge Wheel Hover Unit Improved Gyrokinetic Inverter Flight Unit Impulse Thruster Array Utility Medium Storage Unit Device Advanced Heat Sink Storage Medium Storage Unit Processor Advanced Signal Interpreter Hackware Advanced Hacking Suite Protection Centrium Medium Armor Plating Weapon Phasing Sabre Energy Gun EM Pulse Gun Energy Cannon HERF Cannon Ballistic Gun Improved KE Penetrator Ballistic Cannon Bore Cannon Launcher Shock Bomb Launcher Special Weapon Plasma Flamer Slashing Weapon Phasing Sabre Piercing Weapon Makeshift Spear Special Melee Weapon Improved Datajack Build | -11 -10 -10 -10 -9 -8 -7 -7 -7 -7 -7 -7 -6 -6 -6 -6 -6 -6 -6 -6 -5 -5 -5 -5 -4 -4 -4 -4 -4 -3 -3 -2 -1 ------- Run | Scr Mat Min Exi Min Mat Fac Was Fac Low Low Zio Pro Fac Was Fac Ext Cet Arc Hub Fac Upp Upp War Pro Fac Upp Upp Zhi Pro Res Res Acc Slots Evolved 18 | . . . . . 4 2 . . . . . . 2 . . . . . . 2 . . . . 2 . . . . 2 2 2 Power 1 | . . . . . . . . . . . . . 1 . . . . . . . . . . . . . . . . . . . Propulsion 5 | . . . . . 1 . . . . . . . 1 . . . . . . . . . . . 1 . . . . 1 1 . Utility 11 | . . . . . 3 2 . . . . . . . . . . . . . 1 . . . . 1 . . . . 1 1 2 Weapon 1 | . . . . . . . . . . . . . . . . . . . . 1 . . . . . . . . . . . . Parts Attached 476 | 7 15 . 2 . 23 21 1 15 2 13 8 6 24 9 9 40 18 . 3 58 4 5 16 2 89 9 6 10 7 14 7 33 Power 61 | 1 1 . . . 3 2 . 1 . 3 1 2 2 . 2 8 5 . . 6 . 2 1 1 9 . 2 1 . . 1 7 Engine 18 | 1 1 . . . 1 1 . . . 2 1 2 1 . 2 3 . . . 1 . 1 . . 1 . . . . . . . Core 22 | . . . . . 2 1 . 1 . 1 . . 1 . . 5 . . . 2 . 1 . . 7 . 1 . . . . . Reactor 21 | . . . . . . . . . . . . . . . . . 5 . . 3 . . 1 1 1 . 1 1 . . 1 7 Propulsion 125 | 2 2 . 1 . 4 4 1 3 . 3 . 1 7 6 3 21 2 . . 16 1 . 4 . 24 1 . 3 . 5 2 9 Treads 24 | 1 1 . . . 2 . . . . 1 . 1 3 . 2 3 1 . . 4 . . . . 3 . . . . . . 2 Leg 29 | . . . . . . . . . . . . . . . . 7 1 . . 11 . . . . 9 . . . . . . 1 Wheel 18 | 1 1 . 1 . 2 . . 1 . 1 . . 4 . . 4 . . . . 1 . . . 1 . . . . . . 1 Hover 43 | . . . . . . 4 1 2 . 1 . . . 6 1 7 . . . 1 . . 4 . 10 1 . 3 . . 1 1 Flight 11 | . . . . . . . . . . . . . . . . . . . . . . . . . 1 . . . . 5 1 4 Utility 167 | 2 3 . 1 . 6 7 . 6 . 4 6 2 10 2 2 7 5 . 1 16 1 3 9 . 35 6 2 6 6 7 4 8 Device 60 | . . . . . . 1 . 4 . 1 2 . 6 1 1 2 1 . 1 4 . 1 2 . 17 2 1 2 4 2 2 3 Storage 19 | 2 1 . 1 . . . . 1 . . . . 1 . . 1 1 . . 5 . . 1 . 3 1 . . . 1 . . Processor 25 | . . . . . 1 1 . 1 . 1 3 1 2 . . 1 . . . 1 . . 1 . 3 . . 1 . 2 1 5 Hackware 11 | . . . . . 1 2 . . . . 1 . . . . . . . . 1 . . 3 . 1 . . . . 1 1 . Protection 52 | . 2 . . . 4 3 . . . 2 . 1 1 1 1 3 3 . . 5 1 2 2 . 11 3 1 3 2 1 . . Artifact . | . . . . . . . . . . . . . . . . . . . . . . . . . . . . . . . . . Weapon 123 | 2 9 . . . 10 8 . 5 2 3 1 1 5 1 2 4 6 . 2 20 2 . 2 1 21 2 2 . 1 2 . 9 Energy Gun 19 | 1 4 . . . 6 4 . . . . . . . . . . 1 . . 3 . . . . . . . . . . . . Energy Cannon 5 | . . . . . . . . . . . . . . . . . . . . . . . . . 5 . . . . . . . Ballistic Gun 16 | 1 2 . . . 1 1 . 1 . . . . . . . . 4 . 1 3 . . . . 2 . . . . . . . Ballistic Cannon 8 | . . . . . . . . . . . . . 1 1 2 . . . . . . . . . 3 . 1 . . . . . Launcher 22 | . 3 . . . 1 1 . 3 . 1 . . 1 . . . . . . 6 . . . . 4 . . . . . . 2 Special Weapon 2 | . . . . . . . . 1 . . . . . . . . . . . . . . . . 1 . . . . . . . Impact Weapon . | . . . . . . . . . . . . . . . . . . . . . . . . . . . . . . . . . Slashing Weapon 40 | . . . . . 2 1 . . 2 . . 1 3 . . 4 1 . 1 8 2 . 2 1 5 2 1 . 1 1 . 2 Piercing Weapon 10 | . . . . . . . . . . 2 1 . . . . . . . . . . . . . 1 . . . . 1 . 5 Special Melee Weapon 1 | . . . . . . 1 . . . . . . . . . . . . . . . . . . . . . . . . . . Unidentified Prototypes 28 | . . . . . 1 . . . . . . . 1 . . . 7 . . 4 . . 5 . 2 . . 6 . 1 . 1 Parts Lost 148 | . 1 . . . 7 1 6 1 1 10 . . 3 . 3 9 1 . . 16 . 9 . 6 32 1 1 . . 6 12 22 Power 25 | . . . . . 1 . . . . 3 . . . . 2 4 . . . 2 . 3 . . 4 . 1 . . 1 2 2 Propulsion 39 | . . . . . 2 1 2 . . 2 . . 2 . 1 2 1 . . 5 . . . 1 7 1 . . . . 4 8 Utility 57 | . . . . . . . 4 . 1 5 . . 1 . . 2 . . . 5 . 5 . 5 12 . . . . 5 4 8 Weapon 27 | . 1 . . . 4 . . 1 . . . . . . . 1 . . . 4 . 1 . . 9 . . . . . 2 4 Highest Loss Streak 13 | . 1 . . . 2 1 6 1 1 8 . . 3 . 3 3 1 . . 5 . 6 . 4 12 1 1 . . 4 12 13 Average Slot Usage (%) 84 | . 99 100 100 100 91 87 22 47 65 78 85 92 93 99 86 88 86 86 86 86 88 88 86 74 84 84 93 92 94 84 70 45 Engine 3 | . 14 14 14 14 4 3 . . . 3 4 7 6 6 6 4 . . . 1 . . 2 . . . . . . . . . Core 3 | . . . . . 4 3 1 3 7 1 2 . 5 6 2 6 . . . . 5 7 . . 7 10 7 2 . . . . Reactor 2 | . . . . . . . . . . . . . . . . . 11 13 13 8 5 1 2 4 1 . 1 7 10 9 3 2 Treads 4 | . 14 14 10 . 3 . . . . . 7 7 10 . 8 6 5 6 6 4 . . . . 3 . . . . . . 3 Leg 2 | . . . . . . . . . . . . . . . . 3 . . . 6 11 11 4 . 12 . . . . . . 1 Wheel 5 | . 14 14 17 28 17 7 . 3 . 4 7 7 9 1 . 3 6 6 6 1 4 5 2 . . . . . . . . 1 Hover 5 | . . . . . . 2 6 2 15 8 . . . 23 9 3 . . . 1 . . 12 20 8 25 26 25 26 7 2 1 Device 8 | . . . . . . 3 . 20 26 21 11 13 13 16 12 12 5 6 6 10 9 4 8 6 9 13 14 11 9 12 10 . Storage 9 | . 17 14 24 28 18 15 1 3 . . . . 3 6 6 6 13 13 13 9 11 11 7 5 13 10 10 10 10 5 4 . Processor 10 | . . . . . 8 13 4 6 7 13 23 24 18 13 13 12 10 6 6 8 11 11 11 7 7 5 5 7 10 13 15 21 Hackware 3 | . . . . . 7 11 4 . . . 3 7 6 6 6 6 6 6 6 3 . . 7 3 . . . . . . 3 2 Protection 6 | . 10 14 3 . 8 8 . . . 6 7 6 3 3 6 6 8 13 13 8 6 14 5 8 4 11 10 10 10 7 4 1 Energy Gun 3 | . 17 28 28 28 10 9 . . . . . . . . . . . . . 2 . . . . . . . . . . . . Ballistic Gun 2 | . 10 . . . 3 3 . 2 6 . . . . . . . 9 13 11 6 . . . . 1 . . . . . . . Slashing Weapon 5 | . . . . . 3 . 1 . . 3 . 1 4 6 2 10 3 . 1 6 16 16 15 13 6 . 8 5 6 9 5 4 Piercing Weapon 2 | . . . . . . . . . . 8 15 13 6 3 . . . . . . . . . . . 5 5 5 5 4 4 2 Naked Turns 116 | . . . . . . . 106 10 . . . . . . . . . . . . . . . . . . . . . . . . Heaviest Build 116 | 17 46 46 73 73 81 95 43 19 15 21 21 21 37 48 56 56 83 83 84 98 93 90 86 86 103 88 116 116 108 97 59 41 Greatest Support 160 | 10 20 10 20 20 40 38 33 28 17 28 28 28 40 56 130 130 80 80 80 160 72 28 104 84 110 87 87 87 84 84 76 140 Greatest Overweight (x) 9 | 1 4 4 7 3 7 3 1 2 . 1 . . 9 1 1 3 2 1 2 6 3 3 2 1 2 1 1 1 1 1 . 4 Average Overweight (x) 1 | . 3 4 5 3 2 2 . . . . . . . . . . 1 1 1 1 2 2 1 . . . . . 1 . . . Largest Inventory Capacity 20 | 8 14 12 20 20 20 20 12 4 4 4 4 4 8 8 8 12 12 12 12 16 16 16 16 12 20 16 16 16 16 16 8 4 Average Capacity 11 | 5 12 12 18 20 20 19 6 4 4 4 4 4 6 8 8 8 12 12 12 12 16 16 13 12 18 16 16 16 16 11 8 4 Most Carried 20 | 5 12 12 18 20 20 20 11 4 4 4 4 4 8 8 8 9 12 12 12 16 16 15 15 12 20 16 16 16 16 16 8 4 Average Carried 10 | 2 10 12 13 18 19 19 5 2 4 3 3 3 6 7 7 7 11 12 12 9 15 13 10 10 16 15 15 15 15 10 6 3 Final Capacity 4 | . . . . . . . . . . . . . . . . . . . . . . . . . . . . . . . . 4 Final Carried 1 | . . . . . . . . . . . . . . . . . . . . . . . . . . . . . . . . 1 Class Distribution -------------------- 60% | Messiah-Mutant 13% | Mutant 13% | Hauler-Mutant 4% | Messiah-Tank 3% | Derelict-Mutant Dominant Class ---------------- Mutant | -10/Materials Mutant | -10/Mines Hauler-Mutant | -10/Exiles Hauler-Mutant | -9/Mines Hauler-Mutant | -8/Materials Hauler-Mutant | -7/Factory Mutant | -7/Waste Mutant | -7/Factory Mutant | -7/Lower Caves Mutant | -7/Lower Caves Derelict-Mutant | -7/Zion Messiah-Mutant | -6/Proximity Caves Messiah-Mutant | -6/Factory Messiah-Mutant | -6/Waste Messiah-Mutant | -6/Factory Messiah-Mutant | -6/Extension Messiah-Mutant | -6/Cetus Messiah-Mutant | -6/Archives Messiah-Mutant | -6/Hub_04(d) Messiah-Mutant | -5/Factory Messiah-Mutant | -5/Upper Caves Messiah-Mutant | -5/Upper Caves Messiah-Mutant | -5/Warlord Messiah-Mutant | -4/Proximity Caves Messiah-Mutant | -4/Factory Messiah-Mutant | -4/Upper Caves Messiah-Mutant | -4/Upper Caves Messiah-Mutant | -4/Zhirov Messiah-Mutant | -3/Proximity Caves Messiah-Sprinter | -3/Research Messiah-Sprinter | -2/Research Messiah-Mutant | -1/Access Resources | -11 -10 -10 -10 -9 -8 -7 -7 -7 -7 -7 -7 -6 -6 -6 -6 -6 -6 -6 -6 -5 -5 -5 -5 -4 -4 -4 -4 -4 -3 -3 -2 -1 ----------- Run | Scr Mat Min Exi Min Mat Fac Was Fac Low Low Zio Pro Fac Was Fac Ext Cet Arc Hub Fac Upp Upp War Pro Fac Upp Upp Zhi Pro Res Res Acc Matter Collected 7660 | 279 301 10 10 20 269 160 . 307 31 226 63 77 236 194 163 762 211 8 54 1032 237 29 170 . 1322 340 132 110 126 382 108 291 Remotely . | . . . . . . . . . . . . . . . . . . . . . . . . . . . . . . . . . Salvage Created 11981 | 54 415 41 . . 789 192 . 197 . 474 . 147 991 382 212 1293 122 . 175 2259 283 125 . 92 1873 . 252 297 363 179 205 569 Parts 531 | 1 44 5 . . 53 20 . 5 . 25 . 6 34 3 6 60 8 . 12 75 15 2 . 6 72 . 3 2 23 6 12 33 Haulers Intercepted 5 | . 1 . . . 1 . . . . . . . 1 . . . . . . . . . . . 1 . . . . 1 . . Recyclers Shooed 5 | . . . . . . . . . . . . . . . . 2 . . . 3 . . . . . . . . . . . . Parts Field Recycled . | . . . . . . . . . . . . . . . . . . . . . . . . . . . . . . . . . Retrieved Matter . | . . . . . . . . . . . . . . . . . . . . . . . . . . . . . . . . . Parts Self-Destructed 108 | . . . . . . . . . 2 21 1 5 . . . . . . . . 14 . 32 6 . 4 3 . 20 . . . Prevented 15 | . . . . . . . . . . 1 . 1 . . . . . . . . . 1 1 . . . 9 . 2 . . . Kills | -11 -10 -10 -10 -9 -8 -7 -7 -7 -7 -7 -7 -6 -6 -6 -6 -6 -6 -6 -6 -5 -5 -5 -5 -4 -4 -4 -4 -4 -3 -3 -2 -1 ------- Run | Scr Mat Min Exi Min Mat Fac Was Fac Low Low Zio Pro Fac Was Fac Ext Cet Arc Hub Fac Upp Upp War Pro Fac Upp Upp Zhi Pro Res Res Acc Combat Hostiles Destroyed 200 | . 10 3 . . 18 4 . 3 . 11 . 2 11 2 3 19 2 . . 42 9 2 . 4 26 . 4 . 10 1 2 12 Melee 77 | . . . . . 1 . . . . 8 . 2 9 1 1 11 . . . 10 9 2 . 4 4 . . . 6 1 2 6 Guns 42 | . 6 1 . . 9 3 . . . . . . . . . . 2 . . 19 . . . . 2 . . . . . . . Cannons 16 | . . . . . . . . . . . . . . 1 2 8 . . . . . . . . 5 . . . . . . . AOE 52 | . 4 2 . . 8 1 . 2 . 3 . . 2 . . . . . . 10 . . . . 8 . 2 . 4 . . 6 Classes Destroyed 18 | 1 7 . . . 2 1 . . . . . . . 1 . 2 . . 1 1 1 . . . . . 1 . . . . . Worker 18 | . 3 . . . . 1 . . . . . . 1 . 1 . . . 6 1 . . . . 1 . . . . 1 . 3 Builder 12 | . 3 . . . 1 1 . . . . . . . . . 2 . . 1 1 . . . . 2 . . . . . . 1 Tunneler 2 | . . . . . . . . . . . . . . . . . . . 1 . . . . . 1 . . . . . . . Hauler 5 | . 1 . . . 1 . . . . . . . 1 . . . . . . . . . . . 1 . . . . 1 . . Recycler 8 | 1 . . . . . . . . . . . . 2 . . 2 . . . 1 . . . . 2 . . . . . . . Minesweeper 2 | . . . . . . . . . . . . . . . . . . . . . . . . . . . 1 . 1 . . . Mechanic 2 | . . . . . . . . . . . . . . . . . . . . 1 . . . . . . . . . . . 1 Operator 7 | . 2 . . . . 2 . 1 . . . . . . . . . . . 1 . . . . 1 . . . . . . . Watcher 8 | . 2 . . . . . . . . . . . . . 1 1 . . 1 . . . . . 1 . . . . . 1 1 Swarmer 71 | . 2 3 . . 3 3 . . . 4 . . 3 . . 4 . . . 12 7 . . 4 9 . . . 9 . . 8 Grunt 68 | . 8 . . . 8 . . 3 . 5 . 1 5 . 1 7 . . . 21 . . . . 5 . 3 . . 1 . . Brawler 3 | . . . . . . . . . . . . . . . . 1 . . . 1 . . . . . . 1 . . . . . Duelist 4 | . . . . . . . . . . . . . . . . . . . . 3 . 1 . . . . . . . . . . Sentry 19 | . . . . . 6 . . . . 1 . . 2 . 2 2 . . . 1 1 . . . 3 . . . 1 . . . Hunter 11 | . . . . . 1 . . . . . . . . . . 2 . . . . . 1 . . 4 . . . . . 1 2 Programmer 17 | . . . . . . 1 . . . 1 . 1 1 . . . 1 . . 4 . . . . 5 . . . . . 1 2 Compactor 2 | . . . . . . . . . . . . . . 2 . . . . . . . . . . . . . . . . . . Cetus Guard 1 | . . . . . . . . . . . . . . . . . 1 . . . . . . . . . . . . . . . Master Thief 1 | . . . . . . . . . . . . . . . . . . . . . 1 . . . . . . . . . . . Thug 1 | . . . . . . . . . . . . . . . . 1 . . . . . . . . . . . . . . . . Butcher 2 | . . . . . . . . . . . . . . . . 2 . . . . . . . . . . . . . . . . Best Kill Streak 10 | 1 8 3 . . 9 3 . 2 . 5 . 1 5 1 4 5 1 . 8 10 8 1 . 2 7 . 4 . 5 2 3 7 Combat Bots Only 8 | . 3 3 . . 8 1 . 2 . 5 . 1 5 1 3 4 1 . . 8 8 1 . 2 6 . 4 . 4 1 1 6 Max Kills in Single Turn 6 | 1 5 2 . . 3 2 . 1 . 2 . 1 2 1 2 2 1 . 6 5 1 1 . 1 2 . 2 . 2 1 1 3 Gunslinging . | . . . . . . . . . . . . . . . . . . . . . . . . . . . . . . . . . Exploded 4 | . 1 2 . . 3 1 . 1 . 2 . . 2 . . . . . . 4 . . . . 2 . 2 . 2 . . 2 Melee 1 | . . . . . 1 . . . . 1 . 1 1 1 1 1 . . . 1 1 1 . 1 1 . . . 1 1 1 1 Uniques/NPCs Destroyed . | . . . . . . . . . . . . . . . . . . . . . . . . . . . . . . . . . Combat | -11 -10 -10 -10 -9 -8 -7 -7 -7 -7 -7 -7 -6 -6 -6 -6 -6 -6 -6 -6 -5 -5 -5 -5 -4 -4 -4 -4 -4 -3 -3 -2 -1 -------- Run | Scr Mat Min Exi Min Mat Fac Was Fac Low Low Zio Pro Fac Was Fac Ext Cet Arc Hub Fac Upp Upp War Pro Fac Upp Upp Zhi Pro Res Res Acc Damage Taken 30687 | . 426 46 . . 1181 483 353 225 114 1037 . 114 1059 . 729 2341 148 64 288 5372 413 1025 37 840 6829 532 65 . 1044 872 1211 3839 Core 5047 | . 108 8 . . 165 27 246 73 34 287 . 15 172 . 125 217 39 . . 558 32 139 20 73 778 46 . . 35 91 143 1616 Absorbed by Shields 78 | . . . . . . . . . . . . . . . . . 60 . . . . . . . . . . . . . . 18 Reduced by Siege Mode 197 | . . . . . . . . . . . . . . . 36 50 . . . 111 . . . . . . . . . . . . Core Remaining (%) 53 | 100 . . . 53 70 . . . . . . 2 . . . . . . 34 . . . . 17 . . . . 25 93 90 . Volleys Fired 357 | 3 40 2 . 1 54 23 . 15 . 3 . . 6 10 5 24 2 1 4 71 . . . . 80 . . . 7 . . 6 Largest 3 | 2 2 2 . 2 2 2 . 1 . 1 . . 1 1 1 2 2 2 2 3 . . . . 3 . . . 1 . . 1 Hottest 187 | 70 80 80 . 80 86 141 . 36 . 36 . . 36 57 57 114 70 70 70 133 . . . . 187 . . . 61 . . 52 Shots Fired 621 | 6 72 4 . 2 95 41 . 16 . 3 . . 6 10 5 30 4 2 6 176 . . . . 130 . . . 7 . . 6 Gun 419 | 6 65 4 . 2 91 36 . 3 . . . . . . . . 4 2 6 160 . . . . 40 . . . . . . . Cannon 118 | . . . . . . . . . . . . . . 10 5 30 . . . . . . . . 66 . . . 7 . . . Launcher 76 | . 7 . . . 4 5 . 12 . 3 . . 6 . . . . . . 16 . . . . 17 . . . . . . 6 Special 8 | . . . . . . . . 1 . . . . . . . . . . . . . . . . 7 . . . . . . . Kinetic 344 | 3 32 . . . 20 8 . 3 . . . . . 10 5 30 4 2 6 135 . . . . 79 . . . 7 . . . Thermal 81 | 3 31 . . . 3 20 . 1 . . . . . . . . . . . 16 . . . . 7 . . . . . . . Explosive 22 | . 7 . . . 4 . . . . . . . . . . . . . . 5 . . . . . . . . . . . 6 Electromagnetic 165 | . 2 4 . 2 68 13 . 12 . 3 . . 6 . . . . . . 11 . . . . 44 . . . . . . . Phasic 9 | . . . . . . . . . . . . . . . . . . . . 9 . . . . . . . . . . . . Robot Hit Streak 40 | 5 12 1 . 2 9 5 . 3 . 1 . . 2 2 7 16 3 5 6 40 . . . . 4 . . . 1 . . 1 Robot Miss Streak 5 | 1 4 2 . 1 4 5 . 3 . 2 . . 2 2 . 4 1 . . 2 . . . . 5 . . . 3 . . 4 Penetration Max 1 | . . . . . . . . . . . . . . . 1 1 . . . 1 . . . . . . . . . . . . Secondary Targets 8 | . 1 . . . . . . . . . . . . . . . 1 . . 6 . . . . . . . . . . . . Max Gunslinging Chain 1 | . 1 . . . . . . . . . . . . . . . 1 . . 1 . . . . . . . . . . . . Shots Hit Robots 744 | 5 46 1 . 1 68 26 1 8 . 20 . 10 36 12 15 70 3 2 1 178 29 13 . 13 107 1 4 6 20 7 15 26 Core Hits 447 | 1 33 3 . 1 41 15 . 7 . 14 . 3 21 5 6 35 2 1 23 96 10 4 . 6 46 1 9 3 16 4 7 34 Critical Hits 74 | . 1 . . . . . . . . 1 . . . 3 4 18 1 . . 29 . 1 . . 10 . . . 2 . 1 3 Critical Kills 22 | . 1 . . . . . . . . . . . . 1 3 6 1 . . 5 . . . . 2 . . . . . . 3 Critical Parts Destroyed 49 | . . . . . . . . . . 1 . . . 1 1 12 . . . 24 . 1 . . 6 . . . 2 . 1 . Melee Attacks 769 | . . . . . 12 1 1 . . 35 . 16 47 8 16 161 4 . 7 48 43 29 7 49 71 5 28 6 31 61 32 51 Impact . | . . . . . . . . . . . . . . . . . . . . . . . . . . . . . . . . . Slashing 503 | . . . . . 12 . 1 . . 3 . 6 10 8 16 161 4 . 7 48 43 29 7 49 43 1 8 2 7 18 12 8 Piercing 265 | . . . . . . . . . . 32 . 10 37 . . . . . . . . . . . 28 4 20 4 24 43 20 43 Sneak Attacks 33 | . . . . . 1 1 . . . . . . 7 . . 12 . . . 1 1 . . . 3 . 1 . 1 2 . 3 Combat Hostiles 7 | . . . . . . . . . . . . . 2 . . 4 . . . . 1 . . . . . . . . . . . Follow-up Attacks 74 | . . . . . . . . . . 4 . 1 4 . . 2 . . . 5 10 5 . 3 18 . . 2 6 2 9 3 Damage Inflicted 34372 | 65 1668 103 . 12 1433 689 14 433 . 766 . 443 1641 245 497 3737 85 50 963 7369 1315 559 . 542 5292 36 843 704 1129 538 591 2610 Guns 6165 | 65 583 24 . 12 750 404 . 42 . . . . . . . . 85 50 27 3900 . . . . 223 . . . . . . . Cannons 2329 | . . . . . . . . . . . . . . 112 144 610 . . . . . . . . 1437 . . . 26 . . . Explosions 9294 | . 1085 79 . . 495 285 . 379 . 161 . . 150 . . . . . 936 1938 . 64 . . 1484 . 646 . 360 . . 1232 Melee 16503 | . . . . . 188 . 14 . . 605 . 443 1491 133 352 3127 . . . 1531 1315 495 . 542 2104 36 197 704 743 538 589 1356 Ramming 25 | . . . . . . . . . . . . . . . 1 . . . . . . . . . . . . . . . 2 22 Kinetic 5846 | 40 236 . . . 161 72 . 42 . . . . . 112 144 610 85 50 27 3424 . . . . 817 . . . 26 . . . Thermal 1221 | 25 317 79 . . 94 362 . 12 . . . . . . . . . . 41 247 . . . . 44 . . . . . . . Explosive 4297 | . 1085 . . . 416 59 . . . . . . . . . . . . . 1099 . . . . 406 . . . . . . 1232 Electromagnetic 6237 | . 30 24 . 12 574 196 . 379 . 161 . . 150 . . . . . 895 825 . 64 . . 1921 . 646 . 360 . . . Impact . | . . . . . . . . . . . . . . . . . . . . . . . . . . . . . . . . . Slashing 10411 | . . . . . 188 . 14 . . 47 . 105 414 133 352 3127 . . . 1531 1315 495 . 542 1296 . . 237 185 83 285 62 Piercing 6092 | . . . . . . . . . . 558 . 338 1077 . . . . . . . . . . . 808 36 197 467 558 455 304 1294 Phasic 243 | . . . . . . . . . . . . . . . . . . . . 243 . . . . . . . . . . . . Highest Corruption 17 | . . . . . . 1 17 17 13 11 10 . . . . . . . 2 5 5 12 16 12 12 9 4 1 . 2 3 15 Average Corruption 6 | . . . . . . 1 8 15 11 10 10 . . . . . . . 1 4 5 5 13 12 4 6 2 1 . 1 2 7 Corruption Purged 28 | . . . . . . . . 5 2 1 . . . . . . . . . . . . . . 11 5 3 1 . . . . Effects 183 | . . . . . . . 4 39 9 20 2 . . . . . . . . 35 4 13 1 7 24 5 8 . . . 3 9 Message Errors 42 | . . . . . . . 2 10 1 4 . . . . . . . . . 9 . 3 . . 8 2 1 . . . . 2 Matter Fused 27 | . . . . . . . . 6 1 3 1 . . . . . . . . 4 2 1 . 1 2 1 3 . . . . 2 Heat Flow Errors 25 | . . . . . . . 1 3 3 4 . . . . . . . . . 2 1 2 1 2 3 1 . . . . 1 1 Energy Discharges 18 | . . . . . . . . 2 . 2 . . . . . . . . . 6 . 3 . 1 1 1 1 . . . . 1 Parts Rejected 2 | . . . . . . . . . . . . . . . . . . . . 1 . . . . 1 . . . . . . . Data Loss (minor) 18 | . . . . . . . . 4 1 2 1 . . . . . . . . 3 1 . . 1 1 . 3 . . . . 1 Data Loss (major) 3 | . . . . . . . . 1 . . . . . . . . . . . 1 . 1 . . . . . . . . . . Misfires 2 | . . . . . . . . 1 . . . . . . . . . . . . . . . . 1 . . . . . . . Alerts 1 | . . . . . . . . . . 1 . . . . . . . . . . . . . . . . . . . . . . Misdirections 19 | . . . . . . . 1 8 3 1 . . . . . . . . . . . 1 . 1 2 . . . . . . 2 Targeting Errors 25 | . . . . . . . . 4 . 3 . . . . . . . . . 8 . 2 . 1 5 . . . . . 2 . Weapon Failures 1 | . . . . . . . . . . . . . . . . . . . . 1 . . . . . . . . . . . . Overload Shots . | . . . . . . . . . . . . . . . . . . . . . . . . . . . . . . . . . Overflow Damage 2145 | . 101 . . . 70 . . 15 . 27 . 104 93 . . 752 . . 49 116 82 1 . 54 248 . 83 199 11 . . 140 Projectiles 45 | . . . . . . . . . . . . . . . . . . . . . . . . . 45 . . . . . . . Explosions 336 | . 101 . . . . . . 15 . . . . . . . . . . 49 55 . . . . 67 . 14 . 5 . . 30 Melee 1764 | . . . . . 70 . . . . 27 . 104 93 . . 752 . . . 61 82 1 . 54 136 . 69 199 6 . . 110 Knockbacks 19 | . . . . . . . . . . . . . . . 2 5 . . . . . . . . 10 . . . 1 . . 1 Impact 1 | . . . . . . . . . . . . . . . . . . . . . . . . . . . . . . . . 1 Kinetic 16 | . . . . . . . . . . . . . . . 1 4 . . . . . . . . 10 . . . 1 . . . Secondary 2 | . . . . . . . . . . . . . . . 1 1 . . . . . . . . . . . . . . . . Self-Inflicted Damage 759 | . . 31 . . 9 38 . 10 . . . . 20 . . . . . 104 136 . 80 . . 136 . . . 69 . 1 125 Shots 23 | . . 1 . . 1 1 . 2 . . . . 2 . . . . . 1 4 . 1 . . 6 . . . 1 . . 3 Rammed 6 | . . . . . . . . . . . . . . . . . . . . . . . . . . . . . . . 2 4 Targets Rammed 7 | . . . . . . . . . . . . . . . 1 . . . . . . . . . . . . . . . 2 4 Kicked . | . . . . . . . . . . . . . . . . . . . . . . . . . . . . . . . . . Crushed 1 | . . . . . . . . . . . . . . . 1 . . . . . . . . . . . . . . . . . Highest Temperature 449 | 27 138 78 . 18 279 195 242 256 250 199 . . 3 8 35 343 24 30 30 170 266 183 92 235 449 242 . . . . 170 39 Average Temperature 91 | 14 44 42 . 12 85 67 123 112 107 79 . . 3 3 23 216 12 17 14 43 134 81 59 106 116 129 . . . . 119 39 Received Heat Transfer 4585 | . 225 . . . 432 . . 126 45 366 . 12 285 . 180 669 4 . 9 1125 9 135 18 . 600 102 9 . 45 72 36 81 Effects 3 | . . . . . . . . . . . . . . . . 3 . . . . . . . . . . . . . . . . Shutdowns 1 | . . . . . . . . . . . . . . . . 1 . . . . . . . . . . . . . . . . Energy Bleed 1 | . . . . . . . . . . . . . . . . 1 . . . . . . . . . . . . . . . . Matter Decay 1 | . . . . . . . . . . . . . . . . 1 . . . . . . . . . . . . . . . . Siege Activations 7 | . . . . . . . . . . . . . . . 1 1 1 . 1 3 . . . . . . . . . . . . Total Turns 149 | . . . . . . . . . . . . . . . 11 38 1 . 17 82 . . . . . . . . . . . . Longest Duration 43 | . . . . . . . . . . . . . . . 11 38 1 . 17 43 . . . . . . . . . . . . Robots Corrupted 17 | . . . . . . . . 1 . . . . . . . . . . 2 3 . . . . 9 . 2 . . . . . Combat Hostiles 13 | . . . . . . . . 1 . . . . . . . . . . . 3 . . . . 7 . 2 . . . . . Parts Fried 39 | . . . . . 2 . . 3 . . . . . . . . . . 4 3 . 1 . . 23 . 1 . 2 . . . Impact Corruptions . | . . . . . . . . . . . . . . . . . . . . . . . . . . . . . . . . . Robots Melted . | . . . . . . . . . . . . . . . . . . . . . . . . . . . . . . . . . Combat Hostiles . | . . . . . . . . . . . . . . . . . . . . . . . . . . . . . . . . . Parts Melted 3 | . . . . . . 1 . . . . . . . . . 1 . . . 1 . . . . . . . . . . . . Heat Transferred 2623 | 74 820 150 . . 74 597 . 37 . . . . . . . . . . 100 531 . . . . 240 . . . . . . . Parts Sabotaged . | . . . . . . . . . . . . . . . . . . . . . . . . . . . . . . . . . Parts Stolen 4 | . . . . . . . . . . 1 . . . . . . . . . . 1 . . 1 . . . . 1 . . . Parts Stripped . | . . . . . . . . . . . . . . . . . . . . . . . . . . . . . . . . . Power Chain Reactions 6 | . . 1 . . 1 1 . . . . . . . . . . . . 1 1 . . . . . . . . . . . 1 Missiles Intercepted . | . . . . . . . . . . . . . . . . . . . . . . . . . . . . . . . . . Alert | -11 -10 -10 -10 -9 -8 -7 -7 -7 -7 -7 -7 -6 -6 -6 -6 -6 -6 -6 -6 -5 -5 -5 -5 -4 -4 -4 -4 -4 -3 -3 -2 -1 ------- Run | Scr Mat Min Exi Min Mat Fac Was Fac Low Low Zio Pro Fac Was Fac Ext Cet Arc Hub Fac Upp Upp War Pro Fac Upp Upp Zhi Pro Res Res Acc Peak Influence 1648 | 5 289 182 . 23 460 647 225 203 . . . . 628 251 209 231 562 328 1407 1648 . . . . 458 . . . . 308 152 460 Average Influence 336 | 1 164 181 . 1 180 507 159 87 . . . . 309 197 173 133 252 274 661 1274 . . . . 265 . . . . 99 95 231 Maximum Alert Level 5 | . 1 . . . 2 2 1 1 . . . . 2 1 1 1 2 1 4 5 . . . . 2 . . . . 1 . 2 Low Security (%) 51 | . . . . . . . . . . . . . . . . . . . . . . . . . . . . . . . . . Level 1 25 | . . . . . . . . . . . . . . . . . . . . . . . . . . . . . . . . . Level 2 9 | . . . . . . . . . . . . . . . . . . . . . . . . . . . . . . . . . Level 3 4 | . . . . . . . . . . . . . . . . . . . . . . . . . . . . . . . . . Level 4 7 | . . . . . . . . . . . . . . . . . . . . . . . . . . . . . . . . . Level 5 . | . . . . . . . . . . . . . . . . . . . . . . . . . . . . . . . . . High Security . | . . . . . . . . . . . . . . . . . . . . . . . . . . . . . . . . . Max Security . | . . . . . . . . . . . . . . . . . . . . . . . . . . . . . . . . . Squads Dispatched 68 | . 5 . . 1 11 6 . 8 . . . . 4 . 1 2 . . 3 12 . . . . 7 . . . . 5 1 2 Investigation 24 | . 3 . . 1 6 3 . 2 . . . . 1 . . . . . . 2 . . . . 2 . . . . 2 1 1 Extermination 12 | . . . . . . 2 . 1 . . . . 1 . 1 . . . . 2 . . . . 3 . . . . 1 . 1 Reinforcement 16 | . 2 . . . . 1 . 2 . . . . 1 . . 2 . . 2 2 . . . . 2 . . . . 2 . . Assault 8 | . . . . . . . . . . . . . 1 . . . . . 1 6 . . . . . . . . . . . . Garrison 8 | . . . . . 5 . . 3 . . . . . . . . . . . . . . . . . . . . . . . . Intercept . | . . . . . . . . . . . . . . . . . . . . . . . . . . . . . . . . . Construction Impeded 6 | . . . . . . . . 1 . . . . . . . . . . 1 2 . . . . 1 . . . . 1 . . Haulers Reinforced 1 | . . . . . . . . . . . . . 1 . . . . . . . . . . . . . . . . . . . Stealth | -11 -10 -10 -10 -9 -8 -7 -7 -7 -7 -7 -7 -6 -6 -6 -6 -6 -6 -6 -6 -5 -5 -5 -5 -4 -4 -4 -4 -4 -3 -3 -2 -1 --------- Run | Scr Mat Min Exi Min Mat Fac Was Fac Low Low Zio Pro Fac Was Fac Ext Cet Arc Hub Fac Upp Upp War Pro Fac Upp Upp Zhi Pro Res Res Acc Distress Signals 18 | . 1 . . . 4 . . . . . . . . . . 1 2 . 2 1 . . . . 1 . . . . 2 2 2 Communications Jammed 109 | . . . . . . . . . . . . . 1 . . . . . 68 39 1 . . . . . . . . . . . Distress Signals 106 | . . . . . . . . . . . . . . . . . . . 68 37 1 . . . . . . . . . . . Times Spotted 503 | . 19 1 . 1 43 12 7 11 8 13 1 9 15 2 6 28 12 2 23 69 12 4 4 13 62 7 4 . 15 35 21 44 Peak Tracking Total 23 | . 4 1 . . 10 6 6 3 8 6 1 3 6 1 4 6 5 1 19 10 6 3 4 5 10 7 4 . 5 23 17 20 Tactical Retreats 62 | . 1 . . . 4 2 1 3 2 1 . 1 3 1 . 4 . . 1 5 1 . 2 3 11 . 2 . 1 5 . 8 Traps | -11 -10 -10 -10 -9 -8 -7 -7 -7 -7 -7 -7 -6 -6 -6 -6 -6 -6 -6 -6 -5 -5 -5 -5 -4 -4 -4 -4 -4 -3 -3 -2 -1 ------- Run | Scr Mat Min Exi Min Mat Fac Was Fac Low Low Zio Pro Fac Was Fac Ext Cet Arc Hub Fac Upp Upp War Pro Fac Upp Upp Zhi Pro Res Res Acc Traps Triggered 15 | . . . . . 2 1 . 2 . . . . 1 . 1 . . . . . . . . . 3 . 1 . . 1 . 3 Indirectly 2 | . . . . . . . . . . . . . . . . . . . . . . . . . 1 . 1 . . . . . Trap Hack Attempts . | . . . . . . . . . . . . . . . . . . . . . . . . . . . . . . . . . Triggered . | . . . . . . . . . . . . . . . . . . . . . . . . . . . . . . . . . Disarmed . | . . . . . . . . . . . . . . . . . . . . . . . . . . . . . . . . . Reprogrammed . | . . . . . . . . . . . . . . . . . . . . . . . . . . . . . . . . . Reused 6 | . . . . . . . . . . . . . . . . . . . . . . 1 . . . . 2 . 2 1 . . Traps Extracted . | . . . . . . . . . . . . . . . . . . . . . . . . . . . . . . . . . Installed 8 | . . . . . . . . . . . . . . . . . . . . . . 2 . . . . 3 . 2 1 . . Triggered 15 | . . . . . . . . . 1 . . . . . . . . . . . . 1 7 . . . 3 . 2 1 . . Machines | -11 -10 -10 -10 -9 -8 -7 -7 -7 -7 -7 -7 -6 -6 -6 -6 -6 -6 -6 -6 -5 -5 -5 -5 -4 -4 -4 -4 -4 -3 -3 -2 -1 ---------- Run | Scr Mat Min Exi Min Mat Fac Was Fac Low Low Zio Pro Fac Was Fac Ext Cet Arc Hub Fac Upp Upp War Pro Fac Upp Upp Zhi Pro Res Res Acc Machines Disabled 54 | . 7 . . . 3 3 . . . . . . . . . 3 2 1 16 4 1 . . . 11 . . . . . . 3 Max in Single Turn 13 | . 7 . . . 1 1 . . . . . . . . . 1 1 . 13 1 1 . . . 2 . . . . . . 1 Garrison Access 3 | . . . . . . . . . . . . . . . . . . . 1 1 . . . . 1 . . . . . . . Network Hub 1 | . . . . . . . . . . . . . . . . . . . 1 . . . . . . . . . . . . . Energy Cycler 1 | . . . . . . . . . . . . . . . . . . . . . . . . . . . . . . . . 1 Machines Sabotaged . | . . . . . . . . . . . . . . . . . . . . . . . . . . . . . . . . . Garrisons Compromised . | . . . . . . . . . . . . . . . . . . . . . . . . . . . . . . . . . Overloaded Fab Kills 7 | . . . . . . . . . . . . . . . . . . . . . . . . . 5 . . . . . . 2 Fab Network Shutdowns 2 | . . . . . . 1 . . . . . . 1 . . . . . . . . . . . . . . . . . . . Hacking | -11 -10 -10 -10 -9 -8 -7 -7 -7 -7 -7 -7 -6 -6 -6 -6 -6 -6 -6 -6 -5 -5 -5 -5 -4 -4 -4 -4 -4 -3 -3 -2 -1 --------- Run | Scr Mat Min Exi Min Mat Fac Was Fac Low Low Zio Pro Fac Was Fac Ext Cet Arc Hub Fac Upp Upp War Pro Fac Upp Upp Zhi Pro Res Res Acc Machines Accessed 61 | . 3 . 2 1 11 6 . 5 1 3 1 1 3 . . 1 . . . 4 1 . 1 . 5 1 1 4 . 3 2 1 Terminals 14 | . 1 . . . 7 3 . 2 . . . 1 . . . . . . . . . . . . . . . . . . . . Fabricators 6 | . . . . . . 1 . . . . . . 2 . . . . . . . . . . . 2 . . . . . . 1 Repair Stations 3 | . . . . . . . . . . . . . 1 . . . . . . 2 . . . . . . . . . . . . Recycling Units 10 | . 2 . . . 2 2 . 2 . . . . . . . 1 . . . . . . . . 1 . . . . . . . Scanalyzers 8 | . . . . . 1 . . . . . . . . . . . . . . 1 . . . . 1 . . . . 3 2 . Garrison Access 4 | . . . . . 1 . . 1 . . . . . . . . . . . 1 . . . . 1 . . . . . . . Total Hacks 198 | . 5 . 24 1 32 19 . 13 1 9 4 3 8 . . 3 . . . 21 1 . 1 . 19 1 1 17 . 9 5 1 Successful 138 | . 2 . 24 1 21 14 . 4 1 9 4 1 5 . . 2 . . . 13 1 . 1 . 8 1 1 17 . 3 4 1 Failed 60 | . 3 . . . 11 5 . 9 . . . 2 3 . . 1 . . . 8 . . . . 11 . . . . 6 1 . Catastrophic 11 | . . . . . 4 . . 2 . . . 1 . . . . . . . 2 . . . . 1 . . . . 1 . . Database Lockouts . | . . . . . . . . . . . . . . . . . . . . . . . . . . . . . . . . . Manual 147 | . 3 . 1 . 19 10 . 4 . . . 3 4 . 9 22 10 . 6 20 . . . . 14 . . . . 16 2 4 Terminals 36 | . 2 . . . 16 10 . 5 . . . 3 . . . . . . . . . . . . . . . . . . . . Fabricators 23 | . . . . . . 3 . . . . . . 6 . . . . . . . . . . . 13 . . . . . . 1 Repair Stations 10 | . . . . . . . . . . . . . 2 . . . . . . 8 . . . . . . . . . . . . Recycling Units 22 | . 3 . . . 4 6 . 5 . . . . . . . 3 . . . . . . . . 1 . . . . . . . Scanalyzers 37 | . . . . . 10 . . . . . . . . . . . . . . 9 . . . . 4 . . . . 9 5 . Garrison Access 10 | . . . . . 2 . . 3 . . . . . . . . . . . 4 . . . . 1 . . . . . . . Terminal Hacks 72 | . . . 24 1 5 5 . 1 1 9 4 1 . . . . . . . . 1 . 1 . . 1 1 17 . . . . Record 36 | . . . 23 . . . . . . 7 . . . . . . . . . . 1 . . . . . . 5 . . . . Part Schematic 12 | . . . . . 2 1 . . . . 4 1 . . . . . . . . . . . . . . . 4 . . . . Robot Analysis 5 | . . . . . . 1 . . . . . . . . . . . . . . . . . . . . . 4 . . . . Prototype ID Bank 5 | . . . . . . 1 . . . . . . . . . . . . . . . . . . . . . 4 . . . . Open Door 7 | . . . . 1 . . . . 1 2 . . . . . . . . . . . . 1 . . 1 1 . . . . . Branch Access Points 2 | . . . . . . 1 . 1 . . . . . . . . . . . . . . . . . . . . . . . . Terminal Index 1 | . . . . . 1 . . . . . . . . . . . . . . . . . . . . . . . . . . . Unreport Threat 2 | . . . . . 2 . . . . . . . . . . . . . . . . . . . . . . . . . . . Recall Investigation 1 | . . . . . . 1 . . . . . . . . . . . . . . . . . . . . . . . . . . EX-Prototype ID Bank 1 | . . . 1 . . . . . . . . . . . . . . . . . . . . . . . . . . . . . Fabricator Hacks 9 | . . . . . . 2 . . . . . . 4 . . . . . . . . . . . 3 . . . . . . . Load Schematic 4 | . . . . . . 1 . . . . . . 2 . . . . . . . . . . . 1 . . . . . . . Build 5 | . . . . . . 1 . . . . . . 2 . . . . . . . . . . . 2 . . . . . . . Repair Station Hacks 4 | . . . . . . . . . . . . . . . . . . . . 4 . . . . . . . . . . . . Scan Component 2 | . . . . . . . . . . . . . . . . . . . . 2 . . . . . . . . . . . . Repair 1 | . . . . . . . . . . . . . . . . . . . . 1 . . . . . . . . . . . . Refit 1 | . . . . . . . . . . . . . . . . . . . . 1 . . . . . . . . . . . . Recycling Unit Hacks 7 | . . . . . 1 2 . 2 . . . . . . . 1 . . . . . . . . 1 . . . . . . . Retrieve Components 7 | . . . . . 1 2 . 2 . . . . . . . 1 . . . . . . . . 1 . . . . . . . Scanalyzer 25 | . . . . . 9 . . . . . . . . . . . . . . 8 . . . . 1 . . . . 3 4 . Insert Component 15 | . . . . . 4 . . . . . . . . . . . . . . 4 . . . . 1 . . . . 3 3 . Analyze 10 | . . . . . 5 . . . . . . . . . . . . . . 4 . . . . . . . . . . 1 . Garrison Access Hacks 1 | . . . . . . . . . . . . . . . . . . . . . . . . . 1 . . . . . . . Seal Access 1 | . . . . . . . . . . . . . . . . . . . . . . . . . 1 . . . . . . . Unauthorized Hacks 56 | . 5 . . . 13 11 . 5 . . . . 2 . . 3 . . . 5 . . . . 10 . . . . . . 2 Terminals 6 | . . . . . 2 3 . 1 . . . . . . . . . . . . . . . . . . . . . . . . Track 2 | . . . . . . 2 . . . . . . . . . . . . . . . . . . . . . . . . . . Assimilate 2 | . . . . . 2 . . . . . . . . . . . . . . . . . . . . . . . . . . . Botnet 2 | . . . . . . 1 . 1 . . . . . . . . . . . . . . . . . . . . . . . . Fabricators 4 | . . . . . . . . . . . . . 1 . . . . . . . . . . . 2 . . . . . . 1 Prioritize 1 | . . . . . . . . . . . . . . . . . . . . . . . . . 1 . . . . . . . Haulers 1 | . . . . . . . . . . . . . 1 . . . . . . . . . . . . . . . . . . . Overload 2 | . . . . . . . . . . . . . . . . . . . . . . . . . 1 . . . . . . 1 Repair Stations . | . . . . . . . . . . . . . . . . . . . . . . . . . . . . . . . . . Recycling Units 7 | . 2 . . . 2 2 . . . . . . . . . 1 . . . . . . . . . . . . . . . . Mask 1 | . . . . . . . . . . . . . . . . 1 . . . . . . . . . . . . . . . . Tunnel 6 | . 2 . . . 2 2 . . . . . . . . . . . . . . . . . . . . . . . . . . Scanalyzers 1 | . . . . . 1 . . . . . . . . . . . . . . . . . . . . . . . . . . . Extract 1 | . . . . . 1 . . . . . . . . . . . . . . . . . . . . . . . . . . . Garrison Access 2 | . . . . . 1 . . . . . . . . . . . . . . 1 . . . . . . . . . . . . Reprogram 1 | . . . . . 1 . . . . . . . . . . . . . . . . . . . . . . . . . . . Jam 1 | . . . . . . . . . . . . . . . . . . . . 1 . . . . . . . . . . . . Data Cores Recovered . | . . . . . . . . . . . . . . . . . . . . . . . . . . . . . . . . . Used . | . . . . . . . . . . . . . . . . . . . . . . . . . . . . . . . . . Hacking Detections 33 | . 2 . . . 9 5 . 4 . . . 1 2 . . . . . . 3 . . . . 3 . . . . 3 1 . Full Trace Events 9 | . 1 . . . 1 1 . 2 . . . . 1 . . . . . . 1 . . . . 1 . . . . 1 . . Feedback Events 1 | . . . . . . . . . . . . . . . . . . . . 1 . . . . . . . . . . . . Hackware Fried 1 | . . . . . . . . . . . . . . . . . . . . 1 . . . . . . . . . . . . Feedback Blocked . | . . . . . . . . . . . . . . . . . . . . . . . . . . . . . . . . . Robot Schematics Acquired . | . . . . . . . . . . . . . . . . . . . . . . . . . . . . . . . . . Robots Built . | . . . . . . . . . . . . . . . . . . . . . . . . . . . . . . . . . Matter . | . . . . . . . . . . . . . . . . . . . . . . . . . . . . . . . . . Time . | . . . . . . . . . . . . . . . . . . . . . . . . . . . . . . . . . Total Robot Build Rating . | . . . . . . . . . . . . . . . . . . . . . . . . . . . . . . . . . Part Schematics Acquired 40 | . . . . . 12 1 . . . . 4 1 . . . . . . 14 3 . . . . . . . 4 . . 1 . Parts Built 8 | . . . . . . 2 . . . . . . 3 . . . . . . . . . . . 3 . . . . . . . Matter 913 | . . . . . . 146 . . . . . . 314 . . . . . . . . . . . 453 . . . . . . . Time 276 | . . . . . . 24 . . . . . . 78 . . . . . . . . . . . 174 . . . . . . . Total Part Build Rating 33 | . . . . . . 6 . . . . . . 10 . . . . . . . . . . . 17 . . . . . . . Parts Repaired 1 | . . . . . . . . . . . . . . . . . . . . 1 . . . . . . . . . . . . Time 108 | . . . . . . . . . . . . . . . . . . . . 108 . . . . . . . . . . . . Parts Recycled . | . . . . . . . . . . . . . . . . . . . . . . . . . . . . . . . . . Recycled Matter . | . . . . . . . . . . . . . . . . . . . . . . . . . . . . . . . . . Retrieved Matter . | . . . . . . . . . . . . . . . . . . . . . . . . . . . . . . . . . Retrieved Components 44 | . . . . . 9 17 . . . . . . . . . 9 . . . . . . . . 9 . . . . . . . Parts Scanalyzed 12 | . . . . . 4 . . . . . . . . . . . . . . 4 . . . . 1 . . . . 2 1 . Part Schematics Acquired 8 | . . . . . 4 . . . . . . . . . . . . . . 3 . . . . . . . . . . 1 . Parts Damaged 1 | . . . . . . . . . . . . . . . . . . . . 1 . . . . . . . . . . . . Bothacking | -11 -10 -10 -10 -9 -8 -7 -7 -7 -7 -7 -7 -6 -6 -6 -6 -6 -6 -6 -6 -5 -5 -5 -5 -4 -4 -4 -4 -4 -3 -3 -2 -1 ------------ Run | Scr Mat Min Exi Min Mat Fac Was Fac Low Low Zio Pro Fac Was Fac Ext Cet Arc Hub Fac Upp Upp War Pro Fac Upp Upp Zhi Pro Res Res Acc Used RIF Installer . | . . . . . . . . . . . . . . . . . . . . . . . . . . . . . . . . . Robots Hacked 1 | . . . . . . 1 . . . . . . . . . . . . . . . . . . . . . . . . . . Non-combat 1 | . . . . . . 1 . . . . . . . . . . . . . . . . . . . . . . . . . . Combat . | . . . . . . . . . . . . . . . . . . . . . . . . . . . . . . . . . Robot Hacks Applied 1 | . . . . . . 1 . . . . . . . . . . . . . . . . . . . . . . . . . . find_chute 1 | . . . . . . 1 . . . . . . . . . . . . . . . . . . . . . . . . . . Relay Couplers Released 3 | . . . . . . . . . . . . . . . . . . . 1 2 . . . . . . . . . . . . Machine Destruction 3 | . . . . . . . . . . . . . . . . . . . 1 2 . . . . . . . . . . . . Robots Rewired 7 | . . . . . . . . . . . . . . . . 7 . . . . . . . . . . . . . . . . Allies Hacked 1 | . . . . . . . . . . . . . . . . . . . . . . . . . . . . . . 1 . . Hacks Repelled . | . . . . . . . . . . . . . . . . . . . . . . . . . . . . . . . . . Allies | -11 -10 -10 -10 -9 -8 -7 -7 -7 -7 -7 -7 -6 -6 -6 -6 -6 -6 -6 -6 -5 -5 -5 -5 -4 -4 -4 -4 -4 -3 -3 -2 -1 -------- Run | Scr Mat Min Exi Min Mat Fac Was Fac Low Low Zio Pro Fac Was Fac Ext Cet Arc Hub Fac Upp Upp War Pro Fac Upp Upp Zhi Pro Res Res Acc Total Allies 66 | . . . . 3 3 . . . . . 9 . . 19 . 13 8 . . 5 . . . . . . . . . 5 . 1 Largest Group 19 | . . . . 3 3 1 . . . . 9 8 . 19 1 7 13 12 10 3 . . . . . . . . . 2 . 1 Highest-Rated Group 941 | . . . . 40 42 10 . . . . 272 241 . 714 27 343 941 856 676 210 . . . . . . . . . 206 . 29 Highest-Rated Ally 156 | . . . . 16 16 10 . . . . 40 40 . 50 27 156 156 149 94 85 . . . . . . . . . 103 . 29 Zionite Dispatches 10 | . . . . . . . . . . . . . . . . . 2 . . 3 . . . . . . . . . 4 . 1 Heavy 3 | . . . . . . . . . . . . . . . . . 1 . . . . . . . . . . . . 2 . . Light 1 | . . . . . . . . . . . . . . . . . . . . 1 . . . . . . . . . . . . Recon 1 | . . . . . . . . . . . . . . . . . . . . . . . . . . . . . . 1 . . Kinetic Resupply 1 | . . . . . . . . . . . . . . . . . 1 . . . . . . . . . . . . . . . Melee Resupply 1 | . . . . . . . . . . . . . . . . . . . . . . . . . . . . . . . . 1 Resource Resupply 1 | . . . . . . . . . . . . . . . . . . . . 1 . . . . . . . . . . . . Offense Resupply 1 | . . . . . . . . . . . . . . . . . . . . . . . . . . . . . . 1 . . Hacking Resupply 1 | . . . . . . . . . . . . . . . . . . . . 1 . . . . . . . . . . . . Total Orders 11 | . . . . . . . . . . . . . . . . 2 2 . 1 3 . 1 . . . . . . . 1 . 1 STAY 1 | . . . . . . . . . . . . . . . . 1 . . . . . . . . . . . . . . . . GOTO 1 | . . . . . . . . . . . . . . . . . . . 1 . . . . . . . . . . . . . FOLLOW 2 | . . . . . . . . . . . . . . . . 1 1 . . . . . . . . . . . . . . . DROP 4 | . . . . . . . . . . . . . . . . . 1 . . 1 . . . . . . . . . 1 . 1 EXPLORE 3 | . . . . . . . . . . . . . . . . . . . . 2 . 1 . . . . . . . . . . Ally Attacks 488 | . . . . 4 62 . 7 . . . 8 27 . 117 . 41 67 32 78 32 . . . . . . . . . 13 . . Total Damage 17363 | . . . . 55 611 . 397 . . . 187 1005 . 6613 . 639 1955 1031 2845 923 . . . . . . . . . 1102 . . Kills 87 | . . . . 1 9 . . . . . 1 6 . 18 . 3 13 5 19 7 . . . . . . . . . 5 . . Allies Corrupted 2 | . . . . . . . . . . . . 1 . . . . . . 1 . . . . . . . . . . . . . Allies Melted . | . . . . . . . . . . . . . . . . . . . . . . . . . . . . . . . . . Turrets Deployed 2 | . . . . . . . 2 . . . . . . . . . . . . . . . . . . . . . . . . . Intel | -11 -10 -10 -10 -9 -8 -7 -7 -7 -7 -7 -7 -6 -6 -6 -6 -6 -6 -6 -6 -5 -5 -5 -5 -4 -4 -4 -4 -4 -3 -3 -2 -1 ------- Run | Scr Mat Min Exi Min Mat Fac Was Fac Low Low Zio Pro Fac Was Fac Ext Cet Arc Hub Fac Upp Upp War Pro Fac Upp Upp Zhi Pro Res Res Acc Robot Analysis Total 5 | . . . . . . 1 . . . . . . . . . . . . . . . . . . . . . 4 . . . . Derelict Logs Recovered 12 | . . 1 . 2 . . . . . . 1 2 . . . . . . . . . 1 . 1 . 2 2 . . . . . Drone Launches 6 | . . . . . . . . . . . . . . . . . . . . 4 . 2 . . . . . . . . . . Drone Recoveries . | . . . . . . . . . . . . . . . . . . . . . . . . . . . . . . . . . Decoded 0b10 Intel 6 | . . . . . . . . . . . . . 6 . . . . . . . . . . . . . . . . . . . Traps 6 | . . . . . . . . . . . . . 6 . . . . . . . . . . . . . . . . . . . Zionite Intel Received 13 | . . . . . . . . . . . . . . . 2 5 1 . 1 2 . . . . 1 . . . . 1 . . Emergency Access 1 | . . . . . . . . . . . . . . . . 1 . . . . . . . . . . . . . . . . Component Stockpiles 2 | . . . . . . . . . . . . . . . . . . . . 1 . . . . 1 . . . . . . . Prototype Stockpiles 1 | . . . . . . . . . . . . . . . . . . . . 1 . . . . . . . . . . . . Component Schematics 1 | . . . . . . . . . . . . . . . . . . . 1 . . . . . . . . . . . . . Unaware Analyses 5 | . . . . . . . . . . . . . . . 1 3 1 . . . . . . . . . . . . . . . Trap Installations 1 | . . . . . . . . . . . . . . . . 1 . . . . . . . . . . . . . . . . Active Terminals 1 | . . . . . . . . . . . . . . . 1 . . . . . . . . . . . . . . . . . Active Garrisons 1 | . . . . . . . . . . . . . . . . . . . . . . . . . . . . . . 1 . . Exploration | -11 -10 -10 -10 -9 -8 -7 -7 -7 -7 -7 -7 -6 -6 -6 -6 -6 -6 -6 -6 -5 -5 -5 -5 -4 -4 -4 -4 -4 -3 -3 -2 -1 ------------- Run | Scr Mat Min Exi Min Mat Fac Was Fac Low Low Zio Pro Fac Was Fac Ext Cet Arc Hub Fac Upp Upp War Pro Fac Upp Upp Zhi Pro Res Res Acc Turns Passed 17990 | 71 747 174 588 294 1434 534 151 596 162 461 1037 380 736 283 330 1782 470 80 351 1414 372 393 582 346 1647 292 382 189 400 414 157 741 Spaces Moved 13276 | 55 463 141 442 241 846 332 199 546 283 352 943 303 468 337 229 1045 258 38 154 605 211 267 518 317 1051 298 365 173 328 562 203 703 Core 713 | 1 . . . . . . 161 300 . . . . 1 . . . . . . 10 . . . . . . . . . . . 240 Treads 1032 | . 29 . . . 30 . . . . . . . 102 . 106 236 98 38 140 203 . . . . 8 . . . . . . 42 Legs 766 | . . . . . . . . . . . . . . . . 65 . . . 187 8 . . . 501 . . . . . . 5 Wheels 6051 | 54 434 141 442 241 816 331 . 142 . 184 943 303 365 20 . 488 160 . 14 205 203 267 195 . 18 . . . . . . 85 Hover 3941 | . . . . . . 1 38 104 283 168 . . . 317 123 256 . . . . . . 323 317 524 298 365 173 328 121 . 202 Flight 773 | . . . . . . . . . . . . . . . . . . . . . . . . . . . . . . 441 203 129 Fastest Speed 28 | 50 90 120 110 110 110 102 50 50 56 56 100 100 100 43 43 43 100 180 120 120 130 120 33 36 41 48 48 42 84 28 28 35 Average Speed 97 | 86 123 120 131 110 114 124 59 71 56 100 100 100 115 47 100 107 137 180 174 147 130 122 100 73 97 52 65 85 84 40 30 73 Slowest Speed 500 | 90 200 120 150 110 220 130 106 150 56 120 100 100 500 100 165 270 180 180 180 350 150 130 146 103 190 92 88 88 84 103 40 200 Overloaded Moves 47 | . . . . . . . . . . . . . . . . . . . . . . . 23 10 14 . . . . . . . Propulsion Burnouts . | . . . . . . . . . . . . . . . . . . . . . . . . . . . . . . . . . Robots Hopped 16 | . . . . . . . . . . . . . . . . . . . . . . . . . . . . . . 7 7 2 Cave-ins Triggered 2 | . . . . . . . . . . . . . . . . . . . . . . 1 . 1 . . . . . . . . Exploration Rate (%) 46 | 4 64 38 72 59 64 12 78 11 52 61 88 51 12 92 8 71 70 67 23 33 44 62 55 55 20 54 62 60 44 28 10 23 Regions Visited 32 Branch Regions 19 Pre-discovered Areas 14 | . 2 . 1 1 2 2 . . . . 1 . . . . . . . . . . 1 . 1 . . . 3 . . . . Known Exits Taken 19 | . . . . 1 . . . 1 . . . 1 . . 1 1 1 1 1 1 1 1 1 . 1 1 1 1 1 1 1 . Unknown Exits Taken 9 | 1 1 1 1 . 1 . . . 1 1 1 . . . . . . . . . . . . 1 . . . . . . . . Scrap Searched 16 | . . . . 1 . . . . 1 2 1 2 . . . . . . . . 1 1 . 1 . 3 1 . 2 . . . Spaces Dug 201 | . . . . . 7 . . . . 4 . 4 3 . 4 25 . . 7 5 2 10 4 25 6 3 16 . 6 36 5 29 Terrain Destroyed 787 | . 33 5 . . 53 10 . . . 4 . 4 3 4 6 29 1 . 159 125 2 21 4 25 84 3 34 . 46 36 5 91 Melee 179 | . . . . . 7 . . . . 4 . 4 3 . 4 25 . . 7 2 2 10 4 25 6 3 16 . 6 36 5 10 Projectile 81 | . . . . . . . . . . . . . . 4 2 4 1 . 3 46 . . . . 21 . . . . . . . AOE 527 | . 33 5 . . 46 10 . . . . . . . . . . . . 149 77 . 11 . . 57 . 18 . 40 . . 81 Actions | -11 -10 -10 -10 -9 -8 -7 -7 -7 -7 -7 -7 -6 -6 -6 -6 -6 -6 -6 -6 -5 -5 -5 -5 -4 -4 -4 -4 -4 -3 -3 -2 -1 --------- Run | Scr Mat Min Exi Min Mat Fac Was Fac Low Low Zio Pro Fac Was Fac Ext Cet Arc Hub Fac Upp Upp War Pro Fac Upp Upp Zhi Pro Res Res Acc Total 16828 | 69 570 142 451 270 1199 415 229 738 285 420 1035 366 608 441 299 1468 365 48 218 926 260 299 577 371 1476 426 476 210 408 673 245 845 Wait 1522 | . 26 . . 20 232 13 27 123 . 17 77 34 47 58 34 136 57 10 51 90 7 . 17 7 135 109 73 5 29 36 17 35 Move 13217 | 54 462 140 441 240 845 332 198 545 282 351 942 302 468 336 228 1044 257 37 153 604 210 265 517 315 1050 297 364 172 327 549 191 699 Hop 11 | . . . . . . . . . . . . . . . . . . . . . . . . . . . . . . 4 5 2 Pick Up 174 | 5 12 . 7 5 18 6 1 4 . 2 3 2 6 7 2 7 7 . . 14 2 2 6 2 25 3 5 6 6 4 1 4 Fast Attach 237 | 6 5 . . . 4 5 . 10 2 10 7 2 16 3 5 25 12 . . 27 2 1 9 . 42 3 2 8 . 5 5 21 Attach 124 | 1 1 . . . 10 6 1 5 . 2 1 1 . 3 3 7 . . . 18 . 4 4 2 28 3 2 2 . 7 2 11 Detach 104 | . 3 . . . 2 3 . 5 . 2 2 1 4 1 3 8 3 . . 22 3 . 5 3 20 2 . . . 4 . 8 Swap 116 | . 9 . 2 . 9 10 . . . 1 . 3 8 3 1 8 6 . 3 13 2 . 3 . 19 3 2 1 7 2 . 1 Drop 252 | . 12 . 1 4 13 16 1 5 1 2 3 7 11 12 1 26 17 . . 24 4 2 11 1 26 2 5 12 6 15 3 9 Fire 357 | 3 40 2 . 1 54 23 . 15 . 3 . . 6 10 5 24 2 1 4 71 . . . . 80 . . . 7 . . 6 Melee 619 | . . . . . 12 1 1 . . 30 . 14 42 8 16 138 4 . 7 41 30 21 5 40 51 4 20 4 24 43 20 43 Ram 5 | . . . . . . . . . . . . . . . . . . . . . . . . . . . . . . . 1 4 Kick . | . . . . . . . . . . . . . . . . . . . . . . . . . . . . . . . . . Crush 1 | . . . . . . . . . . . . . . . 1 . . . . . . . . . . . . . . . . . Escape Stasis 33 | . . . . . . . . 26 . . . . . . . . . . . . . 1 . 1 . . . . . 3 . 2 Rewire 45 | . . . . . . . . . . . . . . . . 45 . . . . . . . . . . . . . . . . Trap 8 | . . . . . . . . . . . . . . . . . . . . . . 2 . . . . 3 . 2 1 . . Miscellaneous 3 | . . . . . . . . . . . . . . . . . . . . 2 . 1 . . . . . . . . . . Route ------- -11/Scrapyard -10/Materials (discovered 2 exits: [*Min x2]) -10/Mines -10/Exiles -9/Mines (discovered 2 exits: *Mat x2) -8/Materials -7/Factory (discovered 2 exits: Low x2) -7/Waste -7/Factory (discovered 2 exits: *Low x2) -7/Lower Caves -7/Lower Caves (discovered 2 exits: Fac / *Zio) -7/Zion -6/Proximity Caves -6/Factory (discovered 5 exits: Fac x2 / Low x2 / *Ext) -6/Waste -6/Factory -6/Extension (discovered 2 exits: *Fac / *Cet) -6/Cetus (discovered 2 exits: *Fac / *Arc) -6/Archives -6/Hub_04(d) -5/Factory (discovered 2 exits: *Fac / *Upp) -5/Upper Caves -5/Upper Caves -5/Warlord -4/Proximity Caves -4/Factory (discovered 2 exits: *Res / *Upp) -4/Upper Caves -4/Upper Caves (discovered 2 exits: *Res / *Zhi) -4/Zhirov -3/Proximity Caves -3/Research (discovered 3 exits: *Res x2 / Qua) -2/Research -1/Access History --------- Turn | Location | Event 20 | -11/Scrapyard | Discovered new exit (range 16) 72 | -11/Scrapyard | Entered Materials 206 | -10/Materials | Met 8R-AWN 237 | -10/Materials | Discovered new exit (range 4) 307 | -10/Materials | Build established: Mutant 398 | -10/Materials | Discovered new exit (range 15) 819 | -10/Materials | Entered Mines 822 | -10/Mines | Followed 8R-AWN into the Mines 861 | -10/Mines | Learned Materials emergency access door positions 989 | -10/Mines | Discovered new exit (range 5) 993 | -10/Mines | Entered Exiles 1026 | -10/Exiles | Welcomed by 8R-AWN 1050 | -10/Exiles | Met EX-HEX 1124 | -10/Exiles | Met EX-DEC 1172 | -10/Exiles | Learned location of Zion (-7) 1305 | -10/Exiles | Met EX-BIN 1348 | -10/Exiles | Learned about 8R-AWN's background 1411 | -10/Exiles | Build established: Hauler-Mutant 1411 | -10/Exiles | Aligned with FarCom system 1413 | -10/Exiles | Given EX-Vault access code 1447 | -10/Exiles | Opened EX-Vault 1454 | -10/Exiles | Found Deploy-a-Sentry 1456 | -10/Exiles | Found Deploy-a-Sentry 1458 | -10/Exiles | Found Deploy-a-Sentry 1460 | -10/Exiles | Found Skeleton Box 1462 | -10/Exiles | Found Modified TNC 1487 | -10/Exiles | Warned to stay clear of 0b10 Research branches 1568 | -10/Exiles | Discovered new exit (range 14) 1581 | -10/Exiles | Stole three prototypes: Deploy-a-Sentry, Skeleton Box, Modified TNC 1581 | -10/Exiles | Entered Mines 1676 | -9/Mines | Learned Materials stockpile data 1715 | -9/Mines | Received a Rocket Launcher from a helpful Derelict 1722 | -9/Mines | Learned location of Storage (-9) 1724 | -9/Mines | Identified exit to Materials 1756 | -9/Mines | Assisted by bots powering up and referring to "LRC-V3" 1802 | -9/Mines | Met a Derelict shopkeep closing up shop 1851 | -9/Mines | Discovered exit to Materials (range 9) 1875 | -9/Mines | Entered Materials 1875 | -8/Materials | Accompanied by 3 allies 1875 | -8/Materials | Evolved 4 slots: Propulsion x1, Utility x3 2190 | -8/Materials | Garrison activated, responded to threat 2338 | -8/Materials | Destroyed 8 combat bots 3201 | -8/Materials | Garrison activated, responded to threat 3291 | -8/Materials | Discovered new exit (range 16) 3309 | -8/Materials | Entered Factory 3309 | -7/Factory | Accompanied by 1 ally 3309 | -7/Factory | Evolved 2 slots: Utility x2 3311 | -7/Factory | FarCom data flow suspended 3355 | -7/Factory | Identified exit to Lower Caves 3367 | -7/Factory | Fabricated Adv. Signal Interpreter (x2) 3412 | -7/Factory | Local fabrication network quarantined 3843 | -7/Factory | Sucked down chute 3843 | -7/Factory | Entered Waste 3850 | -7/Waste | Spotted C-40 Crusher 3858 | -7/Waste | EMP discharged 3860 | -7/Waste | Crushed by Compactor (1 part destroyed, 2 dropped) 3873 | -7/Waste | Spotted C-40 Crusher 3874 | -7/Waste | Spotted C-40 Crusher 3875 | -7/Waste | Spotted C-40 Crusher 3883 | -7/Waste | Crushed by Compactor (1 part destroyed, 1 dropped) 3885 | -7/Waste | Crushed by Compactor (1 part destroyed, 1 dropped) 3885 | -7/Waste | Crushed by Compactor (1 part destroyed, 2 dropped) 3886 | -7/Waste | Crushed by Compactor (1 part destroyed, 1 dropped) 3887 | -7/Waste | DAS Turret deployed 3888 | -7/Waste | DAS Turret deployed 3888 | -7/Waste | Crushed by Compactor (1 part destroyed) 3919 | -7/Waste | Lost 6 parts (2n4u) 3948 | -7/Waste | Spotted C-40 Crusher 3958 | -7/Waste | EMP discharged 3958 | -7/Waste | System corruption reached 10% 3959 | -7/Waste | Spotted C-40 Crusher 3973 | -7/Waste | Discovered new exit (range 13) 3994 | -7/Waste | Entered Factory 4197 | -7/Factory | Build established: Mutant 4387 | -7/Factory | Garrison activated, responded to threat 4590 | -7/Factory | Entered Lower Caves 4611 | -7/Lower Caves | Spotted B-75 Beast 4668 | -7/Lower Caves | Attracted the attention of an 0b10 outpost 4672 | -7/Lower Caves | Core integrity fell below 50% 4689 | -7/Lower Caves | Encountered a Warlord checkpoint 4709 | -7/Lower Caves | Discovered new exit (range 16) 4752 | -7/Lower Caves | Entered another Lower Caves area 4878 | -7/Lower Caves | Identified exit to Factory 4878 | -7/Lower Caves | Learned Extension trap positions 4878 | -7/Lower Caves | Learned Armory security intel 4878 | -7/Lower Caves | Learned Armory terminal intel 5029 | -7/Lower Caves | Spotted AA-HCG(f) 5030 | -7/Lower Caves | Lrn. Sensor Array stolen by Master Thief 5031 | -7/Lower Caves | Encountered a Master Thief 5066 | -7/Lower Caves | Attracted the attention of an 0b10 checkpoint 5118 | -7/Lower Caves | Core integrity fell below 20% 5178 | -7/Lower Caves | Lost 8 parts (2p1n5u) 5190 | -7/Lower Caves | Discovered new exit (range 14) 5213 | -7/Lower Caves | Entered Zion 5247 | -7/Zion | System corruption cleaned by Quarantine Array 5263 | -7/Zion | Learned location of Warlord (-5) 5327 | -7/Zion | Discovered new exit (range 15) 5491 | -7/Zion | Learned 8 Factory zone layouts 5701 | -7/Zion | Learned Factory fabricator intel 5807 | -7/Zion | Build established: Derelict-Mutant 5890 | -7/Zion | Imprinted 5892 | -7/Zion | Declared Zion's savior 5969 | -7/Zion | Gained Derelict followers 6187 | -7/Zion | Build established: Messiah-Mutant 6250 | -7/Zion | Entered Proximity Caves 6250 | -6/Proximity Caves | Accompanied by 8 allies 6479 | -6/Proximity Caves | Learned Factory emergency access door positions 6528 | -6/Proximity Caves | Spotted 85-ARG(f) 6529 | -6/Proximity Caves | Encountered a Master Thief 6538 | -6/Proximity Caves | Allies destroyed 85-ARG(f) 6630 | -6/Proximity Caves | Spotted TY-0AA(f) 6630 | -6/Proximity Caves | Entered Factory 6630 | -6/Factory | Evolved 2 slots: Power x1, Propulsion x1 6631 | -6/Factory | Identified exit to Factory 6631 | -6/Factory | Identified exit to Lower Caves 6634 | -6/Factory | Loaded intel: 6 fabricator locations 6856 | -6/Factory | Fabricated Lrn. Sensor Array? 6943 | -6/Factory | Lost 3 parts (2n1u) 6977 | -6/Factory | Fabricated Adv. Signal Interpreter (x2) 7022 | -6/Factory | Discovered new exit (range 16) 7025 | -6/Factory | Local fabrication network quarantined 7330 | -6/Factory | First assault squad dispatched 7366 | -6/Factory | Sucked down chute 7366 | -6/Factory | Entered Waste 7407 | -6/Waste | Spotted C-40 Crusher 7417 | -6/Waste | Warlord forces began an assault 7446 | -6/Waste | Allies destroyed C-40 Crusher 7454 | -6/Waste | Spotted C-40 Crusher 7455 | -6/Waste | Allies destroyed C-40 Crusher 7508 | -6/Waste | Spotted C-40 Crusher 7518 | -6/Waste | Destroyed C-40 Crusher 7524 | -6/Waste | Spotted C-40 Crusher 7558 | -6/Waste | Discovered new exit (range 13) 7579 | -6/Waste | Destroyed C-40 Crusher 7640 | -6/Waste | Identified exit to Factory 7649 | -6/Waste | Entered Factory 7649 | -6/Factory | Accompanied by 1 ally 7661 | -6/Factory | Retrieved Zion intel report: Active Terminals 7716 | -6/Factory | Discovered new exit (range 10) 7796 | -6/Factory | Lost 3 parts (2p1n) 7809 | -6/Factory | Retrieved Zion intel report: Unaware Analyses 7977 | -6/Factory | Identified exit to Extension 7979 | -6/Factory | Entered Extension 7980 | -6/Extension | Loaded intel: 13 trap records 8500 | -6/Extension | Retrieved Zion intel report: Trap Installations 8529 | -6/Extension | Retrieved Zion intel report: Unaware Analyses 8571 | -6/Extension | Rescued a captive Derelict 8619 | -6/Extension | Retrieved Zion intel report: Emergency Access 8630 | -6/Extension | Rescued a captive Derelict 8632 | -6/Extension | Rescued a captive Derelict 8714 | -6/Extension | Core integrity fell below 50% 8747 | -6/Extension | Lost 3 parts (2p1n) 8753 | -6/Extension | Retrieved Zion intel report: Unaware Analyses 9017 | -6/Extension | Rescued a captive Derelict 9079 | -6/Extension | Disrupted transfer network 9111 | -6/Extension | Retrieved Zion intel report: Unaware Analyses 9232 | -6/Extension | Terminal network hard line cut 9380 | -6/Extension | Rescued a captive Derelict 9571 | -6/Extension | Rescued A7 9723 | -6/Extension | Discovered exit to Factory (range 10) 9724 | -6/Extension | Discovered new exit (range 6) 9736 | -6/Extension | Identified exit to Cetus 9761 | -6/Extension | Entered Cetus 9761 | -6/Cetus | Accompanied by 7 allies 9766 | -6/Cetus | Acquired a Cetus Manufacturing Module code from A7 9777 | -6/Cetus | Spotted Cetus Guard 9777 | -6/Cetus | Spotted Cetus Guard 9785 | -6/Cetus | Spotted Cetus Guard 9794 | -6/Cetus | Spotted Cetus Guard 9795 | -6/Cetus | Allies destroyed Cetus Guard 9798 | -6/Cetus | Allies destroyed Cetus Guard 9803 | -6/Cetus | Allies destroyed Cetus Guard 9803 | -6/Cetus | Allies destroyed Cetus Guard 9881 | -6/Cetus | Started Cetus Manufacturing Module 9906 | -6/Cetus | Manufactured an Enhanced Grunt 9907 | -6/Cetus | Retrieved Zion intel report: Unaware Analyses 9908 | -6/Cetus | Zion Heavy squad teleported in 9913 | -6/Cetus | Zion Kinetic Resupply teleported in 9931 | -6/Cetus | Manufactured an Enhanced Grunt 9956 | -6/Cetus | Manufactured an Enhanced Grunt 9981 | -6/Cetus | Manufactured an Enhanced Grunt 10006 | -6/Cetus | Manufactured an Enhanced Grunt 10036 | -6/Cetus | Discovered new exit (range 15) 10063 | -6/Cetus | Spotted Cetus Guard 10063 | -6/Cetus | Spotted Cetus Guard 10064 | -6/Cetus | Destroyed Cetus Guard 10066 | -6/Cetus | Allies destroyed Cetus Guard 10066 | -6/Cetus | Spotted Cetus Guard 10066 | -6/Cetus | Spotted Cetus Guard 10071 | -6/Cetus | Allies destroyed Cetus Guard 10075 | -6/Cetus | Allies destroyed Cetus Guard 10082 | -6/Cetus | Discovered exit to Factory (range 15) 10087 | -6/Cetus | Found Prototype Protection 10087 | -6/Cetus | Identified Zio. Weapon Casing 10117 | -6/Cetus | Scared off Revision 17 10222 | -6/Cetus | Identified exit to Archives 10231 | -6/Cetus | Entered Archives 10231 | -6/Archives | Accompanied by 12 allies 10283 | -6/Archives | Discovered new exit (range 16) 10308 | -6/Archives | Identified exit to Hub_04(d) 10311 | -6/Archives | Entered Hub_04(d) 10311 | -6/Hub_04(d) | Accompanied by 10 allies 10398 | -6/Hub_04(d) | Discovered exit to Factory (range 14) 10532 | -6/Hub_04(d) | Retrieved Zion intel report: Component Schematics 10642 | -6/Hub_04(d) | Network Hub disabled 10653 | -6/Hub_04(d) | Spotted Lightning 10654 | -6/Hub_04(d) | Spotted Lightning 10657 | -6/Hub_04(d) | Spotted Lightning 10657 | -6/Hub_04(d) | Spotted Lightning 10657 | -6/Hub_04(d) | Spotted Lightning 10661 | -6/Hub_04(d) | Spotted Lightning 10662 | -6/Hub_04(d) | Spotted Lightning 10662 | -6/Hub_04(d) | Spotted Lightning 10662 | -6/Hub_04(d) | Entered Factory 10662 | -5/Factory | Accompanied by 2 allies 10662 | -5/Factory | Evolved 2 slots: Utility x1, Weapon x1 10834 | -5/Factory | Adv. Hacking Suite fried by hacking feedback 10962 | -5/Factory | First assault squad dispatched 11142 | -5/Factory | Destroyed 8 combat bots 11258 | -5/Factory | Build established: Messiah-Tank 11385 | -5/Factory | Repaired Centrium Heavy Treads? 11450 | -5/Factory | Lost 5 parts (1n1u3w) 11615 | -5/Factory | Retrieved Zion intel report: Prototype Stockpiles 11616 | -5/Factory | Zion Light squad teleported in 11697 | -5/Factory | Build established: Messiah-Mutant 11698 | -5/Factory | Zion Resource Resupply teleported in 11786 | -5/Factory | Found Zio. Weapon Casing 11866 | -5/Factory | Discovered new exit (range 14) 11872 | -5/Factory | Retrieved Zion intel report: Component Stockpiles 11873 | -5/Factory | Zion Hacking Resupply teleported in 11890 | -5/Factory | Terminal network hard line cut 11915 | -5/Factory | Core integrity fell below 50% 11959 | -5/Factory | Discovered new exit (range 43) 11979 | -5/Factory | Lost 3 parts (1p2n) 12013 | -5/Factory | High security lockdown imminent 12074 | -5/Factory | Identified exit to Upper Caves 12076 | -5/Factory | Entered Upper Caves 12207 | -5/Upper Caves | Attracted the attention of an 0b10 checkpoint 12261 | -5/Upper Caves | Destroyed 8 combat bots 12344 | -5/Upper Caves | Spotted JJ-MVM(f) 12345 | -5/Upper Caves | Spotted 1Z-8IG(f) 12346 | -5/Upper Caves | Encountered a Master Thief 12346 | -5/Upper Caves | Encountered a Master Thief 12347 | -5/Upper Caves | Centrium Heavy Treads stolen by Master Thief 12363 | -5/Upper Caves | Destroyed 1Z-8IG(f) 12420 | -5/Upper Caves | Discovered new exit (range 8) 12426 | -5/Upper Caves | Identified exit to Upper Caves 12448 | -5/Upper Caves | Entered another Upper Caves area 12793 | -5/Upper Caves | Crushed by falling debris 12794 | -5/Upper Caves | System corruption reached 10% 12830 | -5/Upper Caves | Discovered new exit (range 8) 12838 | -5/Upper Caves | Identified exit to Warlord 12841 | -5/Upper Caves | Entered Warlord 12851 | -5/Warlord | Lost 6 parts (1p4u1w) 12881 | -5/Warlord | System corruption cleaned by Quarantine Array 13071 | -5/Warlord | Rebuked by Warlord 13096 | -5/Warlord | Warlord's base attacked by MAIN.C 13115 | -5/Warlord | Found Prototype Processor 13115 | -5/Warlord | Identified Exp. Target Analyzer 13119 | -5/Warlord | Found Prototype Device 13119 | -5/Warlord | Identified Exp. Cloaking Device 13126 | -5/Warlord | Found Prototype Reactor 13169 | -5/Warlord | Identified Vortex Chain Reactor 13282 | -5/Warlord | Opened side exit 13312 | -5/Warlord | Spotted B-86 Titan 13390 | -5/Warlord | Warlord forces counterattacked 13419 | -5/Warlord | Discovered new exit (range 12) 13423 | -5/Warlord | Identified exit to Proximity Caves 13423 | -5/Warlord | Entered Proximity Caves 13550 | -4/Proximity Caves | Spotted B-86 Titan 13631 | -4/Proximity Caves | Core integrity fell below 20% 13644 | -4/Proximity Caves | Crushed by falling debris 13675 | -4/Proximity Caves | Lost 4 parts (4u) 13680 | -4/Proximity Caves | Spotted IM-RQV(f) 13681 | -4/Proximity Caves | Encountered a Master Thief 13685 | -4/Proximity Caves | Exp. Cloaking Device stolen by Master Thief 13760 | -4/Proximity Caves | Discovered new exit (range 16) 13764 | -4/Proximity Caves | Spotted 6L-2QA(f) 13765 | -4/Proximity Caves | Encountered a Master Thief 13769 | -4/Proximity Caves | Entered Factory 13769 | -4/Factory | Evolved 2 slots: Propulsion x1, Utility x1 13944 | -4/Factory | Discovered new exit (range 10) 14079 | -4/Factory | Retrieved Zion intel report: Component Stockpiles 14211 | -4/Factory | Discovered new exit (range 16) 14272 | -4/Factory | Identified exit to Upper Caves 14491 | -4/Factory | Lost 5 parts (2u3w) 14940 | -4/Factory | Lost 6 parts (3n3w) 14971 | -4/Factory | Terminal network hard line cut 15031 | -4/Factory | Lost 3 parts (1p1u1w) 15084 | -4/Factory | Core integrity fell below 50% 15112 | -4/Factory | Lost 3 parts (1n1u1w) 15215 | -4/Factory | Fabricated Imp. Antigrav System? 15268 | -4/Factory | Fabricated Aerolev Unit? 15284 | -4/Factory | System corruption reached 10% 15314 | -4/Factory | Lost 12 parts (2p3n6u1w) 15416 | -4/Factory | Entered Upper Caves 15418 | -4/Upper Caves | Learned Research emergency access door positions 15531 | -4/Upper Caves | Learned Research terminal intel 15572 | -4/Upper Caves | Encountered a Warlord checkpoint 15640 | -4/Upper Caves | Attracted the attention of an 0b10 checkpoint 15679 | -4/Upper Caves | Discovered new exit (range 15) 15706 | -4/Upper Caves | Identified exit to Upper Caves 15708 | -4/Upper Caves | Entered another Upper Caves area 15708 | -4/Upper Caves | Discovered new exit (range 10) 15714 | -4/Upper Caves | Attracted the attention of an 0b10 checkpoint 15809 | -4/Upper Caves | Learned location of 2 exits from Research 16005 | -4/Upper Caves | Learned Research security intel 16079 | -4/Upper Caves | Discovered new exit (range 8) 16084 | -4/Upper Caves | Identified exit to Zhirov 16090 | -4/Upper Caves | Entered Zhirov 16090 | -4/Zhirov | Discovered new exit (range 3) 16106 | -4/Zhirov | Met Zhirov 16126 | -4/Zhirov | Learned location of Quarantine (-3) 16126 | -4/Zhirov | Learned location of Testing (-2) 16132 | -4/Zhirov | Zhirov requested help retrieving the SGEMP Prototype 16147 | -4/Zhirov | Found Alien Artifact 16147 | -4/Zhirov | Identified Integrated Dissipator 16147 | -4/Zhirov | Installed Integrated Dissipator, increased core heat dissipation (+2%) 16246 | -4/Zhirov | Found Alien Artifact 16279 | -4/Zhirov | Identified exit to Proximity Caves 16279 | -4/Zhirov | Entered Proximity Caves 16325 | -3/Proximity Caves | Attracted the attention of an 0b10 checkpoint 16438 | -3/Proximity Caves | Spotted AC-SXI(f) 16438 | -3/Proximity Caves | Spotted 42-4B0(f) 16440 | -3/Proximity Caves | Encountered a Master Thief 16440 | -3/Proximity Caves | Encountered a Master Thief 16443 | -3/Proximity Caves | Alien Artifact stolen by Master Thief 16672 | -3/Proximity Caves | Discovered new exit (range 10) 16679 | -3/Proximity Caves | Identified exit to Research 16679 | -3/Proximity Caves | Entered Research 16679 | -3/Research | Evolved 2 slots: Propulsion x1, Utility x1 16680 | -3/Research | Identified exit to Research 16680 | -3/Research | Identified exit to Quarantine 16683 | -3/Research | Loaded intel: 20 terminal locations 16929 | -3/Research | Retrieved Zion intel report: Active Garrisons 16930 | -3/Research | Zion Heavy squad teleported in 16953 | -3/Research | Spotted B-86 Titan 17006 | -3/Research | Zion Heavy squad teleported in 17032 | -3/Research | Found Fusion Bomb Launcher 17038 | -3/Research | Zion Recon squad teleported in 17039 | -3/Research | Spotted B-86 Titan 17044 | -3/Research | Zion Offense Resupply teleported in 17052 | -3/Research | P-80 Master assimilated allied 5S-TOR(A) 17072 | -3/Research | Discovered exit to Research (range 8) 17093 | -3/Research | Entered another Research area 17093 | -2/Research | Evolved 2 slots: Propulsion x1, Utility x1 17120 | -2/Research | Build established: Messiah-Sprinter 17123 | -2/Research | Lost 4 parts (1p3u) 17147 | -2/Research | Spotted B-90 Cyclops 17245 | -2/Research | Discovered new exit (range 5) 17247 | -2/Research | Identified exit to Access 17250 | -2/Research | Entered Access 17250 | -1/Access | Evolved 2 slots: Utility x2 17260 | -1/Access | Energy Cycler disabled 17291 | -1/Access | Lost 13 parts (2p5n4u2w) 17295 | -1/Access | Zion Melee Resupply teleported in 17527 | -1/Access | Build established: Messiah-Mutant 17637 | -1/Access | Lost 3 parts (1n2u) 17750 | -1/Access | Lost 5 parts (1p1n2u1w) 17865 | -1/Access | Lost 6 parts (1p3n2w) 17899 | -1/Access | System corruption reached 10% 17905 | -1/Access | Core integrity fell below 50% 17906 | -1/Access | Spotted B-99 Colossus 17962 | -1/Access | Core integrity fell below 20% 17991 | -1/Access | Destroyed by P-80 Master with Gamma Rifle Last Messages --------------- 17903_ Acquired Force Lance. 17906_ Slug penetrates Wall. 17921_ C-30 ARC bursts open, deploying its payload. 17921_ S-43 Plague unfolds itself. 17921_ Slammed into S-43 Plague. 17921_ Destabilizing: Core damaged (-16). 17922_ Acquired 109 matter. 17922_ Slammed into S-43 Plague. 17926_ Centrium Leg destroyed. 17942_ Adv. Target Analyzer destroyed. 17944_ >ZPT/:ILZVR0A4&CPVLO 17954_ Destroyed Xenon Bombardment Thruster. 17960_ S-43 Plague destroyed. 17963_ System corrupted: Matter fused (-5). 17963_ S-43 Plague destroyed. 17969_ P-80 Master suffers critical hit. 17969_ P-80 Master destroyed. 17979_ System corrupted: Heat flow error (+109). 17979_ Adv. Targeting Computer destroyed. 17982_ Force Lance destroyed. Map ----- +----------------------------------------------------+ | ?????????????# # # " | | ?????????????# # # | | ?????????????# ######### | | ?????????????# #???????##### # | | ?????????????# #???????????### | | ?????????????# #?????????????? | | ??####???????# #?????????????? | | ??? ?####### ############### | | ??# | | ??? ?####################### | | ???# #???????????????????????? | | ???# #??????????????????###### | | ??## ##?????????????????# | | ??# ################### | | ??# + | | | ??# ################### " | | ??## ##?????????????????# " | | ???# #??????????????????# ""G | | ???# #??????????????????# | | ???# #??????????????????# | | ???# #??????????????????###### | | ???# #???????????????????????? | | ???# #???????????????????????? | | ???#Y#???????????????????????? | | ???#p###########+????????????? | | ???#*@=[% +?????????? | | ???############# #???????????? | | ?????????????????????????????? | | ?????????????????????????????? | | ?????????????????????????????? | | ?????????????????????????????? | | ?????????????????????????????? | | ?????????????????????????????? | | ?????????????????????????????? | | ?????????????????????????????? | | ?????????????????????????????? | | ?????????????????????????????? | | ?????????????????????????????? | | ?????????????????????????????? | | ?????????????????????????????? | | ?????????????????????????????? | | ?????????????????????????????? | | ?????????????????????????????? | | ?????????????????????????????? | | ?????????????????????????????? | | ?????????????????????????????? | | ?????????????????????????????? | | ?????????????????????????????? | | ?????????????????????????????? | | ?????????????????????????????? | +----------------------------------------------------+ Best States ------------- Heat Dissipation 126 Coolant Potential 100 Energy Generation 55 Energy Capacity 700 Matter Stores 300 Matter Capacity 450 Sight Range 22 Robot Scan Range 20 Terrain Scan Range 16 Terrain Scan Density 85 Jamming Range 12 Cloak Strength 4 Power Amplification 30 Armor Coverage 900 Resistance: EM 20 Core Shielding 40 Power Shielding 66 Propulsion Shielding 66 Weapon Shielding 100 Phase Shifting 5 Evasion (%) 76 Targeting Accuracy 16 Melee Accuracy 6 Target Analysis 12 Armor Integrity Analysis 66 Recoil Reduction 4 Stasis Canceling 2 Offensive Hacking 20 Defensive Hacking 33 Item Schematics ----------------- Adv. Signal Interpreter | -8/Materials | Hacked Aerolev Unit | -8/Materials | Scanalyzed Lrn. Sensor Array | -8/Materials | Scanalyzed Hacking Suite | -8/Materials | Scanalyzed Lgt. Angular Momentum Engine | -8/Materials | Scanalyzed Pulse Rifle | -8/Materials | Extracted Sml. Matter Pod | -8/Materials | Extracted Hvy. EM Shotgun | -8/Materials | Extracted Airjet | -8/Materials | Extracted Beam Cannon | -8/Materials | Extracted Disposable Heat Sink | -8/Materials | Extracted Lrg. Storage Unit | -8/Materials | Hacked Arm. Huge Wheel | -7/Factory | Hacked Hvy. Riot Gun | -7/Zion | Free Arc Thrower | -7/Zion | Free Slug Cannon | -7/Zion | Free Enh. Flamer | -7/Zion | Free Falx | -6/Proximity Caves | Hacked Imp. System Backup Module | -6/Hub_04(d) | Z-intel Integration Mediator | -6/Hub_04(d) | Z-intel Imp. Cryofiber Web | -6/Hub_04(d) | Z-intel Target Analyzer | -6/Hub_04(d) | Z-intel Thermal Shield | -6/Hub_04(d) | Z-intel Plasma Cutter | -6/Hub_04(d) | Z-intel Flak Gun | -6/Hub_04(d) | Z-intel Magnetic Acceleration Cannon | -6/Hub_04(d) | Z-intel Maneuvering Thrusters | -6/Hub_04(d) | Z-intel Enh. Optical Array | -6/Hub_04(d) | Z-intel Great Axe | -6/Hub_04(d) | Z-intel Shield Generator | -6/Hub_04(d) | Z-intel Imp. Particle Charger | -6/Hub_04(d) | Z-intel Gauss Cannon | -6/Hub_04(d) | Z-intel Centrium Heavy Treads | -5/Factory | Scanalyzed Imp. KE Penetrator | -5/Factory | Scanalyzed Bore Cannon | -5/Factory | Scanalyzed Assault Drone Bay | -4/Zhirov | Free Exp. Heat Sink | -4/Zhirov | Free Exp. Optical Array | -4/Zhirov | Free Imp. Arc Thrower | -4/Zhirov | Free Impulse Thruster Array | -2/Research | Scanalyzed Robot Schematics ------------------ None Fabricated ------------ Adv. Signal Interpreter | x2 | -7/Factory Lrn. Sensor Array | x1 | -6/Factory Adv. Signal Interpreter | x2 | -6/Factory Imp. Antigrav System | x2 | -4/Factory | Preloaded Aerolev Unit | x1 | -4/Factory Alien Tech Used ----------------- Integrated Dissipator Achievements -------------- None Challenges ------------ None Game ------ Seed SmartbombTrapSink Manual? 0 Play Time 03:47:13 Cumulative 386.1 hours Start 2019.10.26 @ 00:40:16 End 2019.10.26 @ 13:19:30 Sessions 3 Manual Loads 0 Difficulty Rogue Special Mode None Game No. 297 Rogue 289 Adventurer 4 Explorer 0 Win Type - Total 29 Types 23/2/1/1/2/0/0 Lore% 92 Gallery% 92 Achievement% 87 Wizard Run 0 Options --------- ASCII 0 Keyboard 1 Movement Vi Keybinds 0 Fullscreen 0 Font 16/Terminus Map View 76x50 Tactical HUD 1 Map Filters NONE Filters NONE Steam 1 RUN: db6b24a9-9191-4d2f-aada-d5763d4c5f07